[Event "Titled Tuesday Blitz May 31 Late 2022"]
[White "Grigorov, Grigor"]
[Black "Taichman, Ori"]
[WhiteFideId "2907313"]
[BlackFideId "2804069"]
[WhiteElo "2510"]
[BlackElo "2227"]
[Result "0-1"]
[Round "05"]
[TimeControl "180+1"]
[Date "2022.05.31"]
[WhiteClock "0:00:04"]
[BlackClock "0:00:05"]

1. d4 {[%clk 0:03:00]}  Nf6 {[%clk 0:02:57]} 2. Nf3 {[%clk 0:03:00]}  g6 {[%clk 0:02:57]} 3. Bg5 {[%clk 0:03:00]}  Bg7 {[%clk 0:02:57]} 4. Nbd2 {[%clk 0:02:58]}  O-O {[%clk 0:02:57]} 5. e3 {[%clk 0:02:55]}  b6 {[%clk 0:02:51]} 6. Be2 {[%clk 0:02:54]}  Bb7 {[%clk 0:02:51]} 7. O-O {[%clk 0:02:54]}  c5 {[%clk 0:02:51]} 8. c3 {[%clk 0:02:54]}  d6 {[%clk 0:02:51]} 9. Re1 {[%clk 0:02:47]}  Nbd7 {[%clk 0:02:50]} 10. a4 {[%clk 0:02:46]}  a6 {[%clk 0:02:50]} 11. h3 {[%clk 0:02:45]}  Ne4 {[%clk 0:02:45]} 12. Nxe4 {[%clk 0:02:41]}  Bxe4 {[%clk 0:02:46]} 13. Bd3 {[%clk 0:02:37]}  Bxd3 {[%clk 0:02:41]} 14. Qxd3 {[%clk 0:02:36]}  h6 {[%clk 0:02:29]} 15. Bh4 {[%clk 0:02:35]}  g5 {[%clk 0:02:30]} 16. Bg3 {[%clk 0:02:33]}  f5 {[%clk 0:02:25]} 17. Bh2 {[%clk 0:02:05]}  d5 {[%clk 0:02:11]} 18. c4 {[%clk 0:01:50]}  e6 {[%clk 0:01:56]} 19. b4 {[%clk 0:01:43]}  b5 {[%clk 0:01:44]} 20. axb5 {[%clk 0:01:23]}  axb5 {[%clk 0:01:43]} 21. bxc5 {[%clk 0:01:07]}  dxc4 {[%clk 0:01:15]} 22. Rxa8 {[%clk 0:00:45]}  Qxa8 {[%clk 0:01:08]} 23. Qb1 {[%clk 0:00:45]}  Qc6 {[%clk 0:01:00]} 24. Qb4 {[%clk 0:00:39]}  Ra8 {[%clk 0:00:57]} 25. Bd6 {[%clk 0:00:18]}  Ra4 {[%clk 0:00:56]} 26. Qb1 {[%clk 0:00:17]}  b4 {[%clk 0:00:19]} 27. Nd2 {[%clk 0:00:17]}  Qb5 {[%clk 0:00:14]} 28. Rc1 {[%clk 0:00:16]}  b3 {[%clk 0:00:12]} 29. Rc3 {[%clk 0:00:07]}  Nf6 {[%clk 0:00:02]} 30. Nxb3 {[%clk 0:00:05]}  cxb3 {[%clk 0:00:03]} 31. Rxb3 {[%clk 0:00:05]}  Qa6 {[%clk 0:00:01]} 32. Rb8+ {[%clk 0:00:06]}  Kh7 {[%clk 0:00:02]} 33. Rb7 {[%clk 0:00:06]}  Ra1 {[%clk 0:00:02]} 34. Qxa1 {[%clk 0:00:05]}  Qxa1+ {[%clk 0:00:03]} 35. Kh2 {[%clk 0:00:05]}  Nh5 {[%clk 0:00:03]} 36. Be5 {[%clk 0:00:05]}  Kg6 {[%clk 0:00:04]} 37. Bd6 {[%clk 0:00:04]}  Nf6 {[%clk 0:00:04]} 38. c6 {[%clk 0:00:04]}  Qc1 {[%clk 0:00:04]} 39. c7 {[%clk 0:00:04]}  Qc6 {[%clk 0:00:05]} 40. Rb8 {[%clk 0:00:04]}  Qxd6+ {[%clk 0:00:05]} 0-1


[Site "https://www.chess.com"]

[Event "Titled Tuesday Blitz May 31 Late 2022"]
[White "Hess, Robert"]
[Black "Hardaway, Brewington"]
[WhiteFideId "2022036"]
[BlackFideId "30941849"]
[WhiteElo "2557"]
[BlackElo "1768"]
[Result "0-1"]
[Round "05"]
[TimeControl "180+1"]
[Date "2022.05.31"]
[WhiteClock "0:00:04"]
[BlackClock "0:00:30"]

1. b3 {[%clk 0:02:46]}  Nf6 {[%clk 0:02:59]} 2. Bb2 {[%clk 0:02:47]}  g6 {[%clk 0:03:00]} 3. d3 {[%clk 0:02:48]}  Bg7 {[%clk 0:03:00]} 4. Nd2 {[%clk 0:02:48]}  O-O {[%clk 0:03:00]} 5. h3 {[%clk 0:02:49]}  d5 {[%clk 0:03:00]} 6. e3 {[%clk 0:02:50]}  c5 {[%clk 0:03:00]} 7. Ne2 {[%clk 0:02:51]}  Nc6 {[%clk 0:02:59]} 8. g4 {[%clk 0:02:50]}  d4 {[%clk 0:02:57]} 9. e4 {[%clk 0:02:48]}  Nd7 {[%clk 0:02:50]} 10. Ng3 {[%clk 0:02:46]}  Be5 {[%clk 0:02:46]} 11. Rg1 {[%clk 0:02:47]}  e6 {[%clk 0:02:45]} 12. Nc4 {[%clk 0:02:37]}  Bc7 {[%clk 0:02:38]} 13. a4 {[%clk 0:02:37]}  a6 {[%clk 0:02:38]} 14. Bc1 {[%clk 0:02:28]}  e5 {[%clk 0:02:27]} 15. Bh6 {[%clk 0:02:01]}  Re8 {[%clk 0:02:26]} 16. Nf5 {[%clk 0:01:27]}  Nf8 {[%clk 0:02:21]} 17. h4 {[%clk 0:01:27]}  Rb8 {[%clk 0:02:14]} 18. Bg5 {[%clk 0:01:18]}  f6 {[%clk 0:02:06]} 19. Nh6+ {[%clk 0:01:19]}  Kg7 {[%clk 0:02:05]} 20. Bd2 {[%clk 0:01:18]}  b5 {[%clk 0:02:05]} 21. axb5 {[%clk 0:01:16]}  axb5 {[%clk 0:02:05]} 22. Nb2 {[%clk 0:01:06]}  Ne6 {[%clk 0:02:02]} 23. Nf5+ {[%clk 0:01:00]}  Kh8 {[%clk 0:01:57]} 24. Nh6 {[%clk 0:01:00]}  Kg7 {[%clk 0:01:57]} 25. g5 {[%clk 0:00:57]}  Nf4 {[%clk 0:01:52]} 26. Be2 {[%clk 0:00:35]}  fxg5 {[%clk 0:01:33]} 27. hxg5 {[%clk 0:00:36]}  Nh3 {[%clk 0:01:32]} 28. Rg3 {[%clk 0:00:32]}  Rf8 {[%clk 0:01:31]} 29. Rg2 {[%clk 0:00:21]}  Nf4 {[%clk 0:01:26]} 30. Rg3 {[%clk 0:00:21]}  Bd6 {[%clk 0:01:21]} 31. Bg4 {[%clk 0:00:17]}  Bxg4 {[%clk 0:01:20]} 32. Qxg4 {[%clk 0:00:16]}  Qc8 {[%clk 0:01:20]} 33. Kf1 {[%clk 0:00:04]}  Nh5 {[%clk 0:01:18]} 34. Rh3 {[%clk 0:00:05]}  Ra8 {[%clk 0:01:07]} 35. Rxa8 {[%clk 0:00:04]}  Qxg4 {[%clk 0:01:07]} 36. Ra7+ {[%clk 0:00:04]}  Nxa7 {[%clk 0:01:06]} 37. Nxg4 {[%clk 0:00:04]}  Nc6 {[%clk 0:01:04]} 38. Kg2 {[%clk 0:00:04]}  Ra8 {[%clk 0:01:04]} 39. Rh1 {[%clk 0:00:04]}  Ra2 {[%clk 0:01:04]} 40. Rb1 {[%clk 0:00:05]}  Nd8 {[%clk 0:01:03]} 41. Kf3 {[%clk 0:00:03]}  Ne6 {[%clk 0:01:03]} 42. Ke2 {[%clk 0:00:03]}  Nhf4+ {[%clk 0:01:03]} 43. Kd1 {[%clk 0:00:03]}  Nxg5 {[%clk 0:01:03]} 44. Bxf4 {[%clk 0:00:04]}  exf4 {[%clk 0:01:03]} 45. Ke2 {[%clk 0:00:04]}  h5 {[%clk 0:01:03]} 46. Nh2 {[%clk 0:00:04]}  Bc7 {[%clk 0:01:00]} 47. Nf3 {[%clk 0:00:04]}  Nxf3 {[%clk 0:01:00]} 48. Kxf3 {[%clk 0:00:05]}  g5 {[%clk 0:01:01]} 49. Kg2 {[%clk 0:00:05]}  g4 {[%clk 0:01:01]} 50. f3 {[%clk 0:00:05]}  Ba5 {[%clk 0:01:02]} 51. fxg4 {[%clk 0:00:06]}  Bc3 {[%clk 0:01:01]} 52. Nd1 {[%clk 0:00:07]}  Rxc2+ {[%clk 0:01:02]} 53. Kf3 {[%clk 0:00:07]}  hxg4+ {[%clk 0:01:02]} 54. Kxg4 {[%clk 0:00:07]}  Rd2 {[%clk 0:01:02]} 55. Kxf4 {[%clk 0:00:07]}  Rxd3 {[%clk 0:01:03]} 56. Ke5 {[%clk 0:00:06]}  Bb4 {[%clk 0:01:00]} 57. Nf2 {[%clk 0:00:05]}  Rg3 {[%clk 0:00:59]} 58. Kf4 {[%clk 0:00:05]}  Rg2 {[%clk 0:00:57]} 59. Nd3 {[%clk 0:00:05]}  Bd2+ {[%clk 0:00:54]} 60. Ke5 {[%clk 0:00:05]}  Rg5+ {[%clk 0:00:54]} 61. Kd6 {[%clk 0:00:06]}  c4 {[%clk 0:00:55]} 62. bxc4 {[%clk 0:00:06]}  bxc4 {[%clk 0:00:56]} 63. Rb7+ {[%clk 0:00:06]}  Kh6 {[%clk 0:00:55]} 64. Ne5 {[%clk 0:00:07]}  Bf4 {[%clk 0:00:53]} 65. Kd5 {[%clk 0:00:06]}  Bxe5 {[%clk 0:00:53]} 66. Kxc4 {[%clk 0:00:06]}  Kg6 {[%clk 0:00:51]} 67. Rb6+ {[%clk 0:00:06]}  Kf7 {[%clk 0:00:51]} 68. Rb5 {[%clk 0:00:05]}  Ke6 {[%clk 0:00:50]} 69. Rb6+ {[%clk 0:00:04]}  Kd7 {[%clk 0:00:49]} 70. Rb5 {[%clk 0:00:05]}  Kd6 {[%clk 0:00:48]} 71. Rb6+ {[%clk 0:00:04]}  Kd7 {[%clk 0:00:45]} 72. Rb5 {[%clk 0:00:05]}  Kc6 {[%clk 0:00:45]} 73. Ra5 {[%clk 0:00:02]}  Rh5 {[%clk 0:00:35]} 74. Ra6+ {[%clk 0:00:02]}  Kc7 {[%clk 0:00:34]} 75. Ra5 {[%clk 0:00:03]}  Kd7 {[%clk 0:00:30]} 76. Rb5 {[%clk 0:00:03]}  Ke6 {[%clk 0:00:29]} 77. Rb6+ {[%clk 0:00:03]}  Kf7 {[%clk 0:00:29]} 78. Rb5 {[%clk 0:00:03]}  Kf6 {[%clk 0:00:29]} 79. Rb6+ {[%clk 0:00:03]}  Kg5 {[%clk 0:00:28]} 80. Rb7 {[%clk 0:00:03]}  Kf4 {[%clk 0:00:27]} 81. Kd5 {[%clk 0:00:03]}  Bh8+ {[%clk 0:00:27]} 82. Kc4 {[%clk 0:00:03]}  Kxe4 {[%clk 0:00:28]} 83. Re7+ {[%clk 0:00:03]}  Be5 {[%clk 0:00:28]} 84. Rd7 {[%clk 0:00:03]}  Rh3 {[%clk 0:00:28]} 85. Rd8 {[%clk 0:00:03]}  Rc3+ {[%clk 0:00:29]} 86. Kb4 {[%clk 0:00:04]}  Rc6 {[%clk 0:00:29]} 87. Rd7 {[%clk 0:00:04]}  Rd6 {[%clk 0:00:29]} 88. Re7 {[%clk 0:00:03]}  d3 {[%clk 0:00:30]} 89. Kb3 {[%clk 0:00:04]}  d2 {[%clk 0:00:30]} 0-1


[Site "https://www.chess.com"]

[Event "Titled Tuesday Blitz May 31 Late 2022"]
[White "Jobava, Baadur"]
[Black "Fier, Alexandr"]
[WhiteFideId "13601520"]
[BlackFideId "2107139"]
[WhiteElo "2617"]
[BlackElo "2571"]
[Result "1-0"]
[Round "05"]
[TimeControl "180+1"]
[Date "2022.05.31"]
[WhiteClock "0:00:51"]
[BlackClock "0:00:51"]

1. b3 {[%clk 0:03:00]}  e5 {[%clk 0:02:59]} 2. Bb2 {[%clk 0:03:01]}  Nc6 {[%clk 0:02:59]} 3. Nf3 {[%clk 0:03:01]}  e4 {[%clk 0:02:58]} 4. Nd4 {[%clk 0:03:01]}  Nxd4 {[%clk 0:02:56]} 5. Bxd4 {[%clk 0:03:02]}  Ne7 {[%clk 0:02:55]} 6. Bb2 {[%clk 0:03:01]}  Nc6 {[%clk 0:02:55]} 7. e3 {[%clk 0:03:02]}  d5 {[%clk 0:02:55]} 8. Nc3 {[%clk 0:03:02]}  Be6 {[%clk 0:02:54]} 9. d3 {[%clk 0:03:01]}  exd3 {[%clk 0:02:53]} 10. Bxd3 {[%clk 0:03:01]}  Qg5 {[%clk 0:02:54]} 11. O-O {[%clk 0:02:58]}  O-O-O {[%clk 0:02:47]} 12. f4 {[%clk 0:02:57]}  Qh6 {[%clk 0:02:45]} 13. Ne2 {[%clk 0:02:25]}  Bg4 {[%clk 0:02:30]} 14. h3 {[%clk 0:02:21]}  Bxe2 {[%clk 0:02:30]} 15. Qxe2 {[%clk 0:02:22]}  Bc5 {[%clk 0:02:30]} 16. Qg4+ {[%clk 0:02:16]}  Kb8 {[%clk 0:02:28]} 17. Bxg7 {[%clk 0:02:15]}  Bxe3+ {[%clk 0:02:25]} 18. Kh1 {[%clk 0:02:14]}  Qd6 {[%clk 0:02:25]} 19. Bxh8 {[%clk 0:02:14]}  Rxh8 {[%clk 0:02:26]} 20. Rae1 {[%clk 0:02:13]}  d4 {[%clk 0:02:26]} 21. Qg7 {[%clk 0:02:02]}  Rf8 {[%clk 0:02:23]} 22. Qxh7 {[%clk 0:01:52]}  a6 {[%clk 0:02:15]} 23. Qe4 {[%clk 0:01:49]}  f5 {[%clk 0:02:11]} 24. Qf3 {[%clk 0:01:48]}  Qc5 {[%clk 0:02:10]} 25. a3 {[%clk 0:01:34]}  a5 {[%clk 0:02:09]} 26. Re2 {[%clk 0:01:26]}  Ne7 {[%clk 0:02:09]} 27. b4 {[%clk 0:01:23]}  axb4 {[%clk 0:02:08]} 28. axb4 {[%clk 0:01:24]}  Qxb4 {[%clk 0:02:08]} 29. Rxe3 {[%clk 0:01:24]}  dxe3 {[%clk 0:02:08]} 30. Qxe3 {[%clk 0:01:25]}  Nc6 {[%clk 0:01:59]} 31. Qe1 {[%clk 0:01:19]}  Qc5 {[%clk 0:01:57]} 32. Qf2 {[%clk 0:01:19]}  Qb4 {[%clk 0:01:57]} 33. Qe3 {[%clk 0:01:18]}  Nd4 {[%clk 0:01:42]} 34. Kh2 {[%clk 0:01:16]}  Qc3 {[%clk 0:01:40]} 35. Rb1 {[%clk 0:01:14]}  Qc5 {[%clk 0:01:21]} 36. c3 {[%clk 0:01:07]}  Nb3 {[%clk 0:01:21]} 37. Qxc5 {[%clk 0:01:05]}  Nxc5 {[%clk 0:01:21]} 38. Bc2 {[%clk 0:01:06]}  Ne6 {[%clk 0:01:19]} 39. g3 {[%clk 0:01:04]}  b6 {[%clk 0:01:15]} 40. Re1 {[%clk 0:01:03]}  Nc5 {[%clk 0:01:12]} 41. Re5 {[%clk 0:01:02]}  Rd8 {[%clk 0:01:11]} 42. Bxf5 {[%clk 0:01:02]}  Rd2+ {[%clk 0:01:11]} 43. Kg1 {[%clk 0:01:02]}  Na4 {[%clk 0:01:12]} 44. Re3 {[%clk 0:01:01]}  Nb2 {[%clk 0:01:11]} 45. h4 {[%clk 0:00:59]}  Nc4 {[%clk 0:01:10]} 46. Re8+ {[%clk 0:00:57]}  Ka7 {[%clk 0:01:10]} 47. Be4 {[%clk 0:00:57]}  b5 {[%clk 0:01:10]} 48. h5 {[%clk 0:00:57]}  Ne3 {[%clk 0:00:51]} 49. h6 {[%clk 0:00:53]}  Rd1+ {[%clk 0:00:52]} 50. Kf2 {[%clk 0:00:51]}  Ng4+ {[%clk 0:00:51]} 51. Ke2 {[%clk 0:00:51]} 1-0


[Site "https://www.chess.com"]

[Event "Titled Tuesday Blitz May 31 Late 2022"]
[White "Jumabayev, Rinat"]
[Black "Kruckenhauser, Arthur"]
[WhiteFideId "13702661"]
[BlackFideId "1642812"]
[WhiteElo "2561"]
[BlackElo "2243"]
[Result "1/2-1/2"]
[Round "05"]
[TimeControl "180+1"]
[Date "2022.06.01"]
[WhiteClock "0:00:03"]
[BlackClock "0:00:05"]

1. e3 {[%clk 0:03:00]}  e5 {[%clk 0:02:57]} 2. b3 {[%clk 0:03:01]}  d5 {[%clk 0:02:55]} 3. Bb2 {[%clk 0:03:01]}  Nc6 {[%clk 0:02:55]} 4. Bb5 {[%clk 0:03:01]}  Ne7 {[%clk 0:02:56]} 5. Bxe5 {[%clk 0:02:58]}  a6 {[%clk 0:02:52]} 6. Bxc6+ {[%clk 0:02:57]}  Nxc6 {[%clk 0:02:53]} 7. Bg3 {[%clk 0:02:57]}  h5 {[%clk 0:02:37]} 8. h4 {[%clk 0:02:52]}  d4 {[%clk 0:02:37]} 9. Ne2 {[%clk 0:02:47]}  Bd6 {[%clk 0:02:34]} 10. exd4 {[%clk 0:02:33]}  Bxg3 {[%clk 0:02:26]} 11. Nxg3 {[%clk 0:02:34]}  Nxd4 {[%clk 0:02:24]} 12. c3 {[%clk 0:02:31]}  Qe7+ {[%clk 0:02:15]} 13. Kf1 {[%clk 0:02:31]}  Bg4 {[%clk 0:02:16]} 14. f3 {[%clk 0:02:27]}  Nf5 {[%clk 0:02:16]} 15. Kf2 {[%clk 0:02:06]}  Nxg3 {[%clk 0:01:53]} 16. Kxg3 {[%clk 0:02:06]}  Be6 {[%clk 0:01:49]} 17. Qe2 {[%clk 0:02:01]}  O-O-O {[%clk 0:01:48]} 18. Qe3 {[%clk 0:02:01]}  g5 {[%clk 0:01:45]} 19. hxg5 {[%clk 0:01:52]}  Rdg8 {[%clk 0:01:44]} 20. f4 {[%clk 0:01:52]}  f6 {[%clk 0:01:44]} 21. Re1 {[%clk 0:01:37]}  Re8 {[%clk 0:01:33]} 22. d4 {[%clk 0:01:31]}  Qf7 {[%clk 0:00:41]} 23. Nd2 {[%clk 0:01:23]}  fxg5 {[%clk 0:00:39]} 24. fxg5 {[%clk 0:01:22]}  Bd5 {[%clk 0:00:32]} 25. Qf4 {[%clk 0:00:09]}  h4+ {[%clk 0:00:32]} 26. Kg4 {[%clk 0:00:10]}  Be6+ {[%clk 0:00:19]} 27. Rxe6 {[%clk 0:00:10]}  Qxe6+ {[%clk 0:00:14]} 28. Qf5 {[%clk 0:00:10]}  Qxf5+ {[%clk 0:00:15]} 29. Kxf5 {[%clk 0:00:11]}  Re2 {[%clk 0:00:16]} 30. Nf3 {[%clk 0:00:08]}  Rxg2 {[%clk 0:00:15]} 31. Rh1 {[%clk 0:00:05]}  Rf8+ {[%clk 0:00:15]} 32. Ke4 {[%clk 0:00:05]}  Rg4+ {[%clk 0:00:13]} 33. Ke3 {[%clk 0:00:05]}  Rg3 {[%clk 0:00:14]} 34. Rf1 {[%clk 0:00:06]}  h3 {[%clk 0:00:13]} 35. Ke2 {[%clk 0:00:06]}  h2 {[%clk 0:00:06]} 36. Nxh2 {[%clk 0:00:05]}  Rg2+ {[%clk 0:00:06]} 37. Kd3 {[%clk 0:00:04]}  Rxf1 {[%clk 0:00:01]} 38. Nxf1 {[%clk 0:00:05]}  Rxg5 {[%clk 0:00:02]} 39. a4 {[%clk 0:00:06]}  Rg8 {[%clk 0:00:03]} 40. a5 {[%clk 0:00:06]}  Rf8 {[%clk 0:00:03]} 41. Ne3 {[%clk 0:00:06]}  Rg8 {[%clk 0:00:04]} 42. b4 {[%clk 0:00:06]}  Rh8 {[%clk 0:00:05]} 43. Nd5 {[%clk 0:00:06]}  Rh3+ {[%clk 0:00:06]} 44. Kc4 {[%clk 0:00:07]}  Rh5 {[%clk 0:00:06]} 45. Nf4 {[%clk 0:00:06]}  Rf5 {[%clk 0:00:05]} 46. Ne6 {[%clk 0:00:07]}  Kd7 {[%clk 0:00:05]} 47. Nc5+ {[%clk 0:00:07]}  Kc8 {[%clk 0:00:06]} 48. Kb3 {[%clk 0:00:07]}  Rh5 {[%clk 0:00:06]} 49. Kc4 {[%clk 0:00:07]}  Rh3 {[%clk 0:00:07]} 50. Kb3 {[%clk 0:00:07]}  Kb8 {[%clk 0:00:07]} 51. Nd7+ {[%clk 0:00:07]}  Ka7 {[%clk 0:00:07]} 52. Nc5 {[%clk 0:00:07]}  b6 {[%clk 0:00:08]} 53. Ne6 {[%clk 0:00:07]}  Kb7 {[%clk 0:00:07]} 54. Nd8+ {[%clk 0:00:07]}  Kc8 {[%clk 0:00:08]} 55. Nc6 {[%clk 0:00:07]}  Rh6 {[%clk 0:00:07]} 56. Ne5 {[%clk 0:00:07]}  Kb7 {[%clk 0:00:06]} 57. Kc4 {[%clk 0:00:07]}  Rh4 {[%clk 0:00:05]} 58. Kb3 {[%clk 0:00:07]}  Rh3 {[%clk 0:00:05]} 59. Kc4 {[%clk 0:00:08]}  Rh1 {[%clk 0:00:06]} 60. Kb3 {[%clk 0:00:06]}  Ra1 {[%clk 0:00:06]} 61. Kb2 {[%clk 0:00:06]}  Ra4 {[%clk 0:00:06]} 62. Nc4 {[%clk 0:00:06]}  bxa5 {[%clk 0:00:06]} 63. Nxa5+ {[%clk 0:00:06]}  Kb6 {[%clk 0:00:06]} 64. Nb3 {[%clk 0:00:06]}  Kb5 {[%clk 0:00:02]} 65. Nc5 {[%clk 0:00:06]}  Rxb4+ {[%clk 0:00:03]} 66. cxb4 {[%clk 0:00:06]}  Kxb4 {[%clk 0:00:04]} 67. Ne6 {[%clk 0:00:05]}  Kc4 {[%clk 0:00:04]} 68. Ka3 {[%clk 0:00:03]}  Kd5 {[%clk 0:00:05]} 69. Nxc7+ {[%clk 0:00:03]}  Kxd4 {[%clk 0:00:05]} 70. Nxa6 {[%clk 0:00:03]} 1/2-1/2


[Site "https://www.chess.com"]

[Event "Titled Tuesday Blitz May 31 Late 2022"]
[White "Korchmar, Vasiliy"]
[Black "Paravyan, David"]
[WhiteFideId "24131750"]
[BlackFideId "4194985"]
[WhiteElo "2370"]
[BlackElo "2569"]
[Result "1/2-1/2"]
[Round "05"]
[TimeControl "180+1"]
[Date "2022.05.31"]
[WhiteClock "0:00:06"]
[BlackClock "0:00:09"]

1. e4 {[%clk 0:03:00]}  e5 {[%clk 0:02:46]} 2. Nf3 {[%clk 0:03:00]}  Nf6 {[%clk 0:02:46]} 3. Nc3 {[%clk 0:03:00]}  Nc6 {[%clk 0:02:46]} 4. h3 {[%clk 0:03:01]}  d5 {[%clk 0:02:45]} 5. exd5 {[%clk 0:03:02]}  Nxd5 {[%clk 0:02:45]} 6. Bb5 {[%clk 0:03:02]}  Nxc3 {[%clk 0:02:45]} 7. bxc3 {[%clk 0:03:03]}  Bd6 {[%clk 0:02:46]} 8. d4 {[%clk 0:03:04]}  exd4 {[%clk 0:02:47]} 9. O-O {[%clk 0:03:04]}  O-O {[%clk 0:02:47]} 10. cxd4 {[%clk 0:03:05]}  h6 {[%clk 0:02:46]} 11. c4 {[%clk 0:03:02]}  Qf6 {[%clk 0:02:42]} 12. Be3 {[%clk 0:02:55]}  a6 {[%clk 0:02:39]} 13. Bxc6 {[%clk 0:02:50]}  bxc6 {[%clk 0:02:40]} 14. c5 {[%clk 0:02:49]}  Be7 {[%clk 0:02:40]} 15. Ne5 {[%clk 0:02:37]}  Rd8 {[%clk 0:02:28]} 16. Qa4 {[%clk 0:02:13]}  Bxc5 {[%clk 0:02:24]} 17. Qxc6 {[%clk 0:01:43]}  Bxd4 {[%clk 0:01:01]} 18. Bxd4 {[%clk 0:01:39]}  Qxc6 {[%clk 0:01:01]} 19. Nxc6 {[%clk 0:01:39]}  Rd6 {[%clk 0:01:01]} 20. Rac1 {[%clk 0:00:36]}  Bd7 {[%clk 0:01:01]} 21. Ne7+ {[%clk 0:00:28]}  Kf8 {[%clk 0:01:02]} 22. Bc5 {[%clk 0:00:19]}  Kxe7 {[%clk 0:01:02]} 23. Rfe1+ {[%clk 0:00:17]}  Be6 {[%clk 0:01:02]} 24. Bxd6+ {[%clk 0:00:16]}  cxd6 {[%clk 0:01:03]} 25. Rc7+ {[%clk 0:00:14]}  Kf6 {[%clk 0:01:04]} 26. a3 {[%clk 0:00:12]}  Rb8 {[%clk 0:01:00]} 27. Rc6 {[%clk 0:00:11]}  a5 {[%clk 0:01:00]} 28. Rxd6 {[%clk 0:00:10]}  Rb5 {[%clk 0:00:52]} 29. Ra6 {[%clk 0:00:09]}  g5 {[%clk 0:00:51]} 30. Re3 {[%clk 0:00:07]}  Kg7 {[%clk 0:00:49]} 31. Kh2 {[%clk 0:00:05]}  Bb3 {[%clk 0:00:48]} 32. Ra7 {[%clk 0:00:04]}  a4 {[%clk 0:00:49]} 33. Kg3 {[%clk 0:00:03]}  Rc5 {[%clk 0:00:49]} 34. f3 {[%clk 0:00:02]}  Rc2 {[%clk 0:00:49]} 35. Kh2 {[%clk 0:00:02]}  Ra2 {[%clk 0:00:49]} 36. Re5 {[%clk 0:00:01]}  Rxa3 {[%clk 0:00:49]} 37. Kg3 {[%clk 0:00:02]}  Ra2 {[%clk 0:00:49]} 38. Re4 {[%clk 0:00:02]}  Kg6 {[%clk 0:00:40]} 39. h4 {[%clk 0:00:02]}  f5 {[%clk 0:00:12]} 40. Rd4 {[%clk 0:00:02]}  f4+ {[%clk 0:00:13]} 41. Kh2 {[%clk 0:00:03]}  Re2 {[%clk 0:00:10]} 42. hxg5 {[%clk 0:00:03]}  hxg5 {[%clk 0:00:10]} 43. Rd6+ {[%clk 0:00:03]}  Kf5 {[%clk 0:00:08]} 44. Ra5+ {[%clk 0:00:03]}  Re5 {[%clk 0:00:09]} 45. Rxe5+ {[%clk 0:00:03]}  Kxe5 {[%clk 0:00:10]} 46. Rg6 {[%clk 0:00:04]}  Kf5 {[%clk 0:00:07]} 47. Ra6 {[%clk 0:00:04]}  Ke5 {[%clk 0:00:07]} 48. Kg1 {[%clk 0:00:04]}  Kd4 {[%clk 0:00:07]} 49. Ra5 {[%clk 0:00:03]}  Kc3 {[%clk 0:00:07]} 50. Rxg5 {[%clk 0:00:03]}  a3 {[%clk 0:00:04]} 51. Ra5 {[%clk 0:00:03]}  Kb4 {[%clk 0:00:04]} 52. Re5 {[%clk 0:00:03]}  a2 {[%clk 0:00:05]} 53. Re1 {[%clk 0:00:03]}  Bc2 {[%clk 0:00:05]} 54. Ra1 {[%clk 0:00:03]}  Bb1 {[%clk 0:00:06]} 55. Kf2 {[%clk 0:00:03]}  Kc3 {[%clk 0:00:06]} 56. g3 {[%clk 0:00:03]}  fxg3+ {[%clk 0:00:07]} 57. Kxg3 {[%clk 0:00:03]}  Kb2 {[%clk 0:00:07]} 58. Rxa2+ {[%clk 0:00:04]}  Kxa2 {[%clk 0:00:08]} 59. f4 {[%clk 0:00:05]}  Kb3 {[%clk 0:00:09]} 60. Kg4 {[%clk 0:00:06]}  Bc2 {[%clk 0:00:09]} 61. f5 {[%clk 0:00:06]}  Bxf5+ {[%clk 0:00:09]} 1/2-1/2


[Site "https://www.chess.com"]